bitfinex/quotes_BTCUSD_20250101
["timestamp","ask_amount","ask_price","bid_price","bid_amount"]
[1735746604627,0.14300321,94493.0,94491.0,0.10398632]
[1735746605099,0.19067094,94497.0,94491.0,0.10398632]
[1735746605100,0.09527312,94497.0,94491.0,0.10398632]
[1735746605870,0.09527312,94497.0,94491.0,0.10498632]
[1735746606075,0.211646,94498.0,94491.0,0.10698632]
[1735746606455,0.09527312,94501.0,94491.0,0.10698632]
[1735746606654,0.211657,94493.0,94491.0,0.10698632]
[1735746607057,0.211657,94493.0,94491.0,0.003]
[1735746607256,0.211645,94498.0,94491.0,0.10598632]
[1735746607441,0.09527312,94501.0,94492.0,0.11460201]
[1735746607642,0.21164,94500.0,94492.0,0.11460201]
[1735746607888,0.21164,94500.0,94492.0,0.10398632]
[1735746608749,0.09527312,94501.0,94492.0,0.10398632]
[1735746609033,0.001,94500.0,94493.0,0.0782]
[1735746609325,0.001,94500.0,94494.0,0.10398632]
[1735746609526,0.09527312,94501.0,94495.0,0.0489]
[1735746609725,0.09527312,94501.0,94496.0,0.10398632]
[1735746609953,0.09727312,94501.0,94496.0,0.10398632]
[1735746610666,0.21164,94500.0,94496.0,0.10398632]
[1735746610881,0.42428,94500.0,94496.0,0.10398632]
[1735746611284,0.42328,94500.0,94496.0,0.10398632]
[1735746612139,0.42428,94500.0,94496.0,0.10398632]
[1735746612339,0.42328,94500.0,94496.0,0.10398632]
[1735746612785,0.42328,94500.0,94496.0,0.10498632]
[1735746612998,0.42328,94500.0,94496.0,0.10398632]
[1735746613819,0.4233654,94500.0,94496.0,0.10398632]
[1735746614228,0.4233654,94500.0,94496.0,0.10498632]
[1735746614441,0.4233654,94500.0,94496.0,0.10698632]
[1735746614635,0.4233654,94500.0,94496.0,0.10598632]
[1735746614845,0.56636861,94500.0,94496.0,0.10398632]
[1735746615067,0.09527312,94497.0,94496.0,0.10798632]
[1735746616041,0.56636861,94500.0,94496.0,0.10798632]
[1735746616042,0.09527312,94498.0,94496.0,0.10798632]
[1735746616361,0.09527312,94498.0,94496.0,0.10498632]
[1735746616800,0.09527312,94498.0,94496.0,0.10398632]
[1735746617011,0.30691912,94497.0,94496.0,0.10398632]
[1735746617223,0.30691912,94497.0,94496.0,0.10498632]
[1735746617568,0.30691912,94497.0,94496.0,0.10398632]
[1735746617766,0.30691912,94497.0,94496.0,0.10798632]
[1735746617983,0.30691912,94497.0,94496.0,0.10898632]
[1735746618421,0.30691912,94497.0,94496.0,0.10798632]
[1735746618779,0.30691912,94497.0,94496.0,0.10898632]
[1735746620796,0.30691912,94497.0,94496.0,0.005]
[1735746622390,0.211646,94497.0,94496.0,0.005]
[1735746622595,0.618974,94497.0,94496.0,0.005]
[1735746622964,0.384671,94486.0,94485.0,0.0001706]
[1735746623139,0.541705,94486.0,94485.0,0.0001706]
[1735746623553,0.384671,94486.0,94485.0,0.0001706]
[1735746623760,0.503005,94486.0,94485.0,0.0001706]
[1735746624323,0.6772338,94486.0,94485.0,0.0001706]
[1735746624440,0.6782338,94486.0,94485.0,0.0001706]
[1735746624902,0.6792338,94486.0,94485.0,0.0001706]
[1735746625121,0.6772338,94486.0,94485.0,0.0001706]
[1735746625514,0.6792338,94486.0,94485.0,0.0001706]
[1735746625683,0.6772338,94486.0,94485.0,0.0001706]
[1735746625885,0.273,94485.0,94484.0,2e-08]
[1735746626091,2.10685619,94485.0,94484.0,2e-08]
[1735746626290,0.64106922,94485.0,94484.0,2e-08]
[1735746626492,0.64106922,94485.0,94443.0,0.0806]
[1735746626493,0.584705,94471.0,94470.0,2.2e-07]
[1735746626701,0.68869132,94471.0,94470.0,8.1e-07]
[1735746626882,0.79053615,94471.0,94470.0,8.1e-07]
[1735746627350,0.81730343,94471.0,94470.0,8.1e-07]
[1735746627532,0.74307463,94471.0,94470.0,8.1e-07]
[1735746627864,0.176908,94470.0,94443.0,0.06742909]
[1735746628064,0.1,94468.0,94444.0,0.10413526]
[1735746628327,0.211759,94447.0,94444.0,0.10413526]
[1735746628499,0.211759,94447.0,94444.0,0.00014894]
[1735746628500,0.234763,94445.0,94444.0,0.00014894]
[1735746628864,0.211763,94445.0,94444.0,0.00014894]
[1735746629225,0.211754,94449.0,94444.0,0.00014894]
[1735746629427,0.211738,94457.0,94445.0,0.10398632]
[1735746629629,0.211738,94457.0,94446.0,0.01041353]
[1735746629834,0.211738,94457.0,94447.0,0.10398632]
[1735746630624,0.211738,94457.0,94447.0,0.07398632]
[1735746630827,0.09533117,94453.0,94447.0,0.07398632]
[1735746631068,0.09533117,94453.0,94448.0,0.0806]
[1735746631258,0.09533117,94453.0,94449.0,0.10398632]
[1735746631903,0.211741,94455.0,94449.0,0.10398632]
[1735746632897,0.211741,94455.0,94449.0,0.10798632]
[1735746633735,0.211741,94455.0,94449.0,0.10898632]
[1735746634275,0.2540879,94455.0,94449.0,0.10498632]
[1735746634480,0.211751,94451.0,94449.0,0.10498632]
[1735746634631,0.211751,94451.0,94449.0,0.10798632]
[1735746635045,0.211741,94455.0,94449.0,0.10798632]
[1735746635214,0.211751,94451.0,94449.0,0.10798632]
[1735746635420,0.211751,94451.0,94449.0,0.10498632]
[1735746635670,0.211751,94451.0,94449.0,0.10998632]
[1735746635870,0.211751,94451.0,94449.0,0.10498632]
[1735746636066,0.211751,94451.0,94444.0,0.00014894]
[1735746636270,0.211763,94445.0,94444.0,0.00014894]
[1735746636705,0.2752896,94445.0,94444.0,0.00014894]
[1735746637000,0.4482896,94445.0,94444.0,0.00014894]
[1735746637217,0.66397102,94445.0,94444.0,0.00014894]
[1735746637436,0.60335042,94445.0,94444.0,0.00114894]
[1735746637608,0.49223942,94445.0,94444.0,0.00114894]
[1735746637826,0.384763,94445.0,94444.0,0.00014894]
[1735746638174,0.386763,94445.0,94444.0,0.00014894]
[1735746638492,0.388763,94445.0,94444.0,0.00014894]
[1735746638851,0.386763,94445.0,94444.0,0.00014894]
[1735746639643,0.363763,94445.0,94444.0,0.00014894]
[1735746640447,0.30684457,94450.0,94444.0,0.10413526]
[1735746640604,0.211752,94450.0,94445.0,0.10398632]
[1735746641031,0.09509257,94453.0,94445.0,0.10398632]
[1735746641657,0.1500854,94455.0,94445.0,0.10398632]
[1735746641828,0.15,94453.0,94445.0,0.10398632]
[1735746642043,0.15,94453.0,94445.0,0.10498632]
[1735746642485,0.211747,94452.0,94445.0,0.10398632]
[1735746642827,0.211747,94452.0,94445.0,0.10498632]
[1735746643306,0.211747,94452.0,94445.0,0.10398632]
[1735746645171,0.212747,94452.0,94445.0,0.10998632]
[1735746645386,0.211747,94452.0,94445.0,0.10398632]
[1735746645815,0.211747,94452.0,94445.0,0.10998632]
[1735746645816,0.212747,94452.0,94445.0,0.10998632]
[1735746646020,0.212747,94452.0,94445.0,0.11198632]
[1735746646680,0.212747,94452.0,94445.0,0.10998632]
[1735746646921,0.21175,94451.0,94445.0,0.10998632]
[1735746647560,0.21175,94451.0,94445.0,0.11198632]
[1735746648011,0.21175,94451.0,94445.0,0.10598632]
[1735746648227,0.21176,94447.0,94445.0,0.10598632]
[1735746648433,0.21176,94447.0,94445.0,0.11198632]
[1735746648908,0.21176,94447.0,94445.0,0.10998632]
[1735746649051,0.21176,94447.0,94445.0,0.10698632]
[1735746649466,0.21176,94447.0,94445.0,0.10398632]
[1735746649870,0.21176,94447.0,94445.0,0.10698632]
[1735746650385,0.21266991,94447.0,94445.0,0.11498632]
[1735746650631,0.21266991,94447.0,94445.0,0.11515712]
[1735746650834,0.001,94447.0,94445.0,0.11515712]
[1735746657640,0.001,94447.0,94446.0,0.1307]
[1735746657848,0.001,94447.0,94446.0,0.44644732]
[1735746658625,8.54e-05,94451.0,94446.0,0.44644732]
[1735746658854,8.54e-05,94451.0,94447.0,0.10398632]
[1735746660747,8.54e-05,94451.0,94448.0,0.211756]
[1735746660959,8.54e-05,94451.0,94449.0,0.10398632]
[1735746661370,0.0010854,94451.0,94449.0,0.10398632]
[1735746661867,8.54e-05,94451.0,94449.0,0.10398632]
[1735746662082,0.0010854,94451.0,94449.0,0.10698632]
[1735746662284,0.00091987,94451.0,94450.0,0.01133061]
[1735746662493,0.00091987,94451.0,94450.0,0.11531693]
[1735746662806,0.00100527,94451.0,94450.0,0.11531693]
[1735746663172,0.00100527,94451.0,94450.0,0.10398632]
[1735746663370,8.54e-05,94451.0,94450.0,0.10398632]
[1735746663775,0.0010854,94451.0,94450.0,0.10398632]
[1735746663955,8.54e-05,94451.0,94450.0,0.10398632]
[1735746664366,8.54e-05,94451.0,94450.0,0.45543832]
[1735746664367,0.0010854,94451.0,94450.0,0.45543832]
[1735746664572,0.0010854,94451.0,94450.0,0.54336653]
[1735746664780,0.0010854,94451.0,94450.0,0.45543832]
[1735746665222,0.0010854,94451.0,94450.0,0.45243832]
[1735746665628,0.0010854,94451.0,94450.0,0.45543832]
[1735746666275,0.0010854,94451.0,94450.0,0.45243832]
[1735746666894,8.54e-05,94451.0,94450.0,0.44643832]
[1735746667342,8.54e-05,94451.0,94450.0,0.54246653]
[1735746667547,8.54e-05,94451.0,94450.0,0.44843832]
[1735746667913,0.0010854,94451.0,94450.0,0.45743832]
[1735746668119,0.0010854,94451.0,94450.0,0.45543832]
[1735746668317,0.0010854,94451.0,94450.0,0.46043832]
[1735746670429,0.0010854,94451.0,94450.0,0.24868632]
[1735746671243,0.0010854,94451.0,94450.0,0.46043832]
[1735746671467,0.0010854,94451.0,94450.0,0.46143832]
[1735746673071,0.15,94477.0,94450.0,0.46143832]
[1735746673288,0.09534108,94474.0,94451.0,0.17133803]
[1735746674032,0.09534108,94474.0,94452.0,0.211747]
[1735746674233,0.09534108,94474.0,94453.0,0.10398632]
[1735746674383,0.29299676,94477.0,94453.0,0.10398632]
[1735746674586,0.29299676,94477.0,94458.0,0.211733]
[1735746674809,0.29299676,94477.0,94459.0,0.13555825]
[1735746675028,0.14299676,94477.0,94459.0,0.13555825]
[1735746675222,0.14299676,94477.0,94462.0,0.18648632]
[1735746675416,0.19066234,94481.0,94462.0,0.18648632]
[1735746675417,0.14299676,94481.0,94469.0,0.211708]
[1735746675618,0.14299676,94481.0,94470.0,0.15208632]
[1735746676586,0.173,94493.0,94470.0,0.15208632]
[1735746676784,0.211658,94492.0,94470.0,0.15208632]
[1735746677135,0.173,94493.0,94471.0,0.01520863]
[1735746677351,0.173,94493.0,94472.0,0.31568832]
[1735746677540,0.023,94493.0,94472.0,0.31568832]
[1735746677742,0.023,94493.0,94472.0,0.10398632]
[1735746677935,0.215658,94492.0,94472.0,0.10398632]
[1735746678140,0.215658,94492.0,94473.0,0.0590716]
[1735746678342,0.023,94493.0,94474.0,0.10398632]
[1735746678543,0.025,94493.0,94474.0,0.10398632]
[1735746678900,0.1564561,94493.0,94474.0,0.10398632]
[1735746679045,0.154,94493.0,94474.0,0.10398632]
[1735746679226,0.211658,94492.0,94474.0,0.15824802]
[1735746679707,0.211658,94492.0,94474.0,0.10398632]
[1735746680530,0.211658,94492.0,94474.0,0.10498632]
[1735746680886,0.211658,94492.0,94474.0,0.10398632]
[1735746681113,0.15,94493.0,94474.0,0.10798632]
[1735746681511,0.211658,94492.0,94474.0,0.10798632]
[1735746681964,0.023,94488.0,94474.0,0.10798632]
[1735746682136,0.292396,94475.0,94474.0,0.003]
[1735746683298,0.292396,94475.0,94474.0,0.004]
[1735746683749,0.292396,94475.0,94451.0,0.0464]
[1735746683925,0.08109608,94474.0,94452.0,0.10398632]
[1735746684333,0.08109608,94474.0,94452.0,0.31573332]
[1735746684913,0.2117,94473.0,94452.0,0.10398632]
[1735746685116,0.2117,94473.0,94452.0,0.10598632]
[1735746685721,0.2117,94473.0,94452.0,0.31773332]
[1735746685926,0.02343231,94472.0,94452.0,0.10598632]
[1735746686407,0.211714,94467.0,94452.0,0.10598632]
[1735746686605,0.211714,94467.0,94452.0,0.10715712]
[1735746686808,0.211714,94467.0,94452.0,0.10515712]
[1735746687015,0.25639913,94467.0,94452.0,0.10715712]
[1735746687605,0.04468513,94467.0,94452.0,0.10515712]
[1735746687815,0.211705,94471.0,94452.0,0.10715712]
[1735746687933,0.211705,94471.0,94452.0,0.10415712]
[1735746688139,0.15,94473.0,94452.0,0.10615712]
[1735746688343,0.15,94473.0,94452.0,0.11015712]
[1735746688344,0.09518883,94472.0,94452.0,0.11015712]
[1735746688557,0.09518883,94472.0,94452.0,0.10615712]
[1735746688767,0.09518883,94472.0,94461.0,0.10398632]
[1735746688973,0.09518883,94472.0,94467.0,0.211712]
[1735746689181,0.09518883,94472.0,94468.0,0.10398632]
[1735746689715,0.09518883,94472.0,94469.0,0.211709]
[1735746689876,0.09518883,94472.0,94470.0,0.10398632]
[1735746690079,0.09518883,94482.0,94470.0,0.10398632]
[1735746690703,0.15307362,94482.0,94470.0,0.10398632]
[1735746690908,0.09518883,94482.0,94470.0,0.10398632]
[1735746691106,0.09518883,94482.0,94470.0,0.11098632]
[1735746691320,0.15,94484.0,94470.0,0.11098632]
[1735746691559,0.211682,94481.0,94470.0,0.10498632]
[1735746691904,0.211682,94481.0,94470.0,0.10698632]
[1735746692225,0.15,94484.0,94470.0,0.10698632]
[1735746692667,0.15,94484.0,94471.0,0.08999863]
[1735746692868,0.15,94484.0,94472.0,0.10398632]
[1735746693249,0.09518883,94487.0,94472.0,0.10398632]
[1735746694141,0.09518883,94487.0,94472.0,0.10498632]
[1735746694340,0.09518883,94487.0,94474.0,0.10398632]
[1735746694545,0.09518883,94487.0,94483.0,0.211676]
[1735746694769,0.09518883,94487.0,94484.0,0.10398632]
[1735746694964,0.09518883,94489.0,94484.0,0.10398632]
[1735746695366,0.09518883,94489.0,94485.0,0.211673]
[1735746695565,0.09518883,94489.0,94486.0,0.10398632]
[1735746695970,0.19066234,94494.0,94486.0,0.10398632]
[1735746696205,0.09527423,94498.0,94486.0,0.10398632]
[1735746696874,0.09527423,94498.0,94486.0,0.10598632]
[1735746697007,8.54e-05,94498.0,94486.0,0.10998632]
[1735746697220,8.54e-05,94498.0,94486.0,0.10798632]
[1735746697420,8.54e-05,94498.0,94486.0,0.10398632]
[1735746697795,0.211652,94495.0,94486.0,0.10698632]
[1735746698135,0.211658,94492.0,94486.0,0.10698632]
[1735746698863,0.361669,94487.0,94486.0,0.003]
[1735746699063,0.361669,94487.0,94486.0,0.002]
[1735746699257,0.361669,94487.0,94486.0,0.003]
[1735746699407,0.361669,94487.0,94486.0,0.001]
[1735746699774,0.361669,94487.0,94486.0,0.003]
[1735746699982,0.211673,94485.0,94466.0,0.0793]
[1735746700229,0.211673,94485.0,94467.0,0.10398632]
[1735746700563,0.15,94486.0,94470.0,0.0001708]
[1735746700711,0.15,94486.0,94471.0,0.10398632]
[1735746701114,0.001,94487.0,94472.0,0.211702]
[1735746701366,0.001,94487.0,94473.0,0.10398632]
[1735746701577,0.09518883,94483.0,94473.0,0.10398632]
[1735746702562,0.002,94487.0,94473.0,0.10398632]
[1735746702776,0.15,94494.0,94473.0,0.10398632]
[1735746703011,0.001,94486.0,94473.0,0.10398632]
[1735746703217,0.002,94486.0,94473.0,0.10398632]
[1735746703363,0.001,94486.0,94473.0,0.10398632]
[1735746703565,0.15,94494.0,94473.0,0.11298632]
[1735746703790,0.15,94494.0,94473.0,0.10698632]
[1735746703994,0.15,94494.0,94473.0,0.16858863]
[1735746704205,0.15,94494.0,94473.0,0.11498632]
[1735746704369,0.15,94494.0,94473.0,0.11198632]
[1735746704569,0.15,94494.0,94473.0,0.10398632]
[1735746704770,0.24527423,94498.0,94474.0,0.211698]
[1735746704985,0.24527423,94498.0,94475.0,0.10398632]
[1735746705188,0.24527423,94498.0,94476.0,0.05275571]
[1735746705401,0.24527423,94498.0,94477.0,0.10398632]
[1735746706746,0.1500854,94498.0,94477.0,0.10398632]
[1735746707274,0.1500854,94498.0,94477.0,0.10598632]
[1735746707473,0.1500854,94498.0,94477.0,0.11198632]
[1735746710239,0.15,94495.0,94477.0,0.11198632]
[1735746711844,0.0759,94492.0,94477.0,0.11198632]
[1735746712037,0.15,94495.0,94477.0,0.11198632]
[1735746712638,0.15,94495.0,94477.0,0.10398632]
[1735746712916,0.15,94495.0,94477.0,0.10998632]
[1735746713118,0.15,94495.0,94477.0,0.11198632]
[1735746713302,0.15,94495.0,94477.0,0.10598632]
[1735746713519,0.15,94495.0,94477.0,0.10998632]
[1735746714471,0.09518883,94494.0,94477.0,0.10998632]
[1735746714889,0.09518883,94494.0,94477.0,0.11198632]
[1735746715501,0.211658,94492.0,94477.0,0.11198632]
[1735746716339,0.211658,94492.0,94477.0,0.10398632]
[1735746716744,0.09518883,94494.0,94477.0,0.11198632]
[1735746716971,0.211685,94480.0,94477.0,0.008]
[1735746717134,0.211678,94484.0,94477.0,0.008]
[1735746717613,0.42337,94480.0,94477.0,0.008]
[1735746717987,0.42337,94480.0,94477.0,0.006]
[1735746717988,0.361689,94478.0,94477.0,0.006]
[1735746718198,0.4484742,94478.0,94477.0,0.006]
[1735746718601,0.361689,94478.0,94477.0,0.006]
[1735746718840,0.361689,94478.0,94477.0,0.007]
[1735746719179,0.361689,94478.0,94477.0,0.001]
[1735746719387,0.211698,94474.0,94473.0,0.0001708]
[1735746719590,0.211693,94476.0,94473.0,0.0001708]
[1735746720192,0.24518883,94479.0,94473.0,0.0001708]
[1735746720613,0.09518883,94479.0,94474.0,0.10398632]
[1735746721367,0.09518883,94475.0,94474.0,0.12199911]
[1735746721591,0.09518883,94475.0,94474.0,0.10398632]
[1735746721759,0.09518883,94475.0,94474.0,0.15388632]
[1735746722167,0.09518883,94487.0,94474.0,0.15388632]
[1735746722766,0.15,94488.0,94474.0,0.15588632]
[1735746723021,0.15,94488.0,94474.0,0.16088632]
[1735746723150,0.15,94491.0,94474.0,0.15588632]
[1735746723358,0.15,94489.0,94474.0,0.15588632]
[1735746723786,0.211686,94480.0,94474.0,0.15588632]
[1735746724191,0.211686,94480.0,94474.0,0.15388632]
[1735746724384,0.423372,94480.0,94474.0,0.10398632]
[1735746725276,0.423372,94480.0,94474.0,0.10498632]
[1735746725476,0.211693,94477.0,94474.0,0.10498632]
[1735746725854,0.211693,94477.0,94474.0,0.10398632]
[1735746726192,0.211686,94480.0,94474.0,0.10698632]
[1735746727174,0.211686,94480.0,94474.0,0.11398632]
[1735746727381,0.09518883,94487.0,94475.0,0.06891279]
[1735746727582,0.09518883,94487.0,94477.0,0.0758]
[1735746727787,0.09518883,94487.0,94475.0,0.06891279]
[1735746727788,0.09518883,94487.0,94479.0,0.0758]
[1735746728033,0.09518883,94487.0,94480.0,0.10398632]
[1735746728248,0.14299676,94489.0,94480.0,0.10398632]
[1735746728249,0.09527423,94493.0,94480.0,0.10398632]
[1735746728444,0.09527423,94493.0,94480.0,0.12957331]
[1735746728683,0.211658,94492.0,94480.0,0.12957331]
[1735746728862,0.09527423,94493.0,94480.0,0.12957331]
[1735746729072,0.09527423,94493.0,94480.0,0.10398632]
[1735746729226,8.54e-05,94493.0,94480.0,0.10398632]
[1735746729424,8.54e-05,94493.0,94480.0,0.10698632]
[1735746729745,8.54e-05,94493.0,94480.0,0.11498632]
[1735746729919,8.54e-05,94493.0,94480.0,0.11799167]
[1735746730335,8.54e-05,94493.0,94480.0,0.12699167]
[1735746730933,8.54e-05,94493.0,94480.0,0.11298632]
[1735746731149,0.211658,94492.0,94480.0,0.11598632]
[1735746731573,0.211682,94481.0,94480.0,0.11598632]
[1735746731769,0.211682,94481.0,94480.0,0.10398632]
[1735746732012,0.211682,94481.0,94470.0,0.0001708]
[1735746732013,0.211698,94474.0,94470.0,0.0001708]
[1735746733380,0.211694,94476.0,94473.0,0.0071708]
[1735746734524,0.211694,94476.0,94473.0,0.0101708]
[1735746734918,0.211694,94476.0,94473.0,0.0001708]
[1735746735124,0.211694,94476.0,94473.0,0.0071708]
[1735746735351,0.211682,94481.0,94473.0,0.0031708]
[1735746735522,0.211694,94476.0,94473.0,0.0031708]
[1735746735719,0.211681,94482.0,94474.0,0.10398632]
[1735746736059,0.211681,94482.0,94475.0,0.01123279]
[1735746736234,0.211672,94486.0,94476.0,0.14938632]
[1735746736458,0.09518883,94492.0,94477.0,0.0802]
[1735746736641,0.09518883,94492.0,94478.0,0.10398632]
[1735746737367,8.54e-05,94493.0,94479.0,0.0802]
[1735746737562,8.54e-05,94493.0,94480.0,0.13631324]
[1735746737786,8.54e-05,94487.0,94480.0,0.10398632]
[1735746738549,0.09518883,94484.0,94480.0,0.10398632]
[1735746738742,0.09518883,94484.0,94480.0,0.10698632]
[1735746739189,0.09518883,94484.0,94480.0,0.11598632]
[1735746739459,8.54e-05,94487.0,94480.0,0.10398632]
[1735746739794,8.54e-05,94487.0,94480.0,0.11298632]
[1735746740622,8.54e-05,94487.0,94481.0,0.04502773]
[1735746740847,8.54e-05,94487.0,94482.0,0.10398632]
[1735746742110,8.54e-05,94487.0,94482.0,0.11298632]
[1735746744118,8.54e-05,94487.0,94482.0,0.11698632]
[1735746748706,8.54e-05,94487.0,94482.0,0.11298632]
[1735746748847,8.54e-05,94487.0,94482.0,0.005]
[1735746749033,0.423347,94485.0,94482.0,0.005]
[1735746749264,0.423347,94485.0,94482.0,0.014]
[1735746750087,0.423347,94485.0,94482.0,0.009]
[1735746750332,0.51853583,94485.0,94482.0,0.012]
[1735746750545,0.51853583,94485.0,94482.0,0.003]
[1735746750858,0.30686183,94485.0,94482.0,0.011]
[1735746751081,0.30686183,94485.0,94482.0,0.008]
[1735746751293,0.30686183,94485.0,94482.0,0.011]
[1735746751294,0.211673,94485.0,94482.0,0.011]
[1735746751688,0.211673,94485.0,94482.0,0.017]
[1735746751931,0.09527423,94487.0,94483.0,0.10398632]
[1735746752392,0.2117564,94487.0,94483.0,0.10398632]
[1735746753598,0.2117564,94487.0,94483.0,0.10598632]
[1735746754006,0.211671,94486.0,94483.0,0.11198632]
[1735746755197,0.211671,94486.0,94483.0,0.10598632]
[1735746755432,0.211671,94486.0,94483.0,0.10398632]
[1735746755608,0.423343,94486.0,94483.0,0.10998632]
[1735746756793,0.211671,94486.0,94483.0,0.11198632]
[1735746757400,8.54e-05,94487.0,94483.0,0.11198632]
[1735746758344,0.211671,94486.0,94483.0,0.10398632]
[1735746758647,0.211671,94486.0,94483.0,0.11198632]
[1735746760041,0.211671,94486.0,94483.0,0.10398632]
[1735746760395,8.54e-05,94487.0,94483.0,0.11198632]
[1735746760864,0.09527423,94487.0,94483.0,0.11198632]
[1735746761218,0.09527423,94487.0,94483.0,0.10998632]
[1735746761560,0.09527423,94487.0,94483.0,0.11198632]
[1735746761776,0.09527423,94487.0,94483.0,0.10598632]
[1735746762002,0.09527423,94487.0,94483.0,0.11198632]
[1735746762415,0.211671,94486.0,94483.0,0.11198632]
[1735746762616,0.423342,94486.0,94483.0,0.008]
[1735746763143,0.423342,94486.0,94483.0,0.002]
[1735746763339,0.09527423,94487.0,94477.0,0.0001706]
[1735746763595,0.21168,94483.0,94478.0,0.10398632]
[1735746763784,0.211673,94485.0,94478.0,0.10398632]
[1735746764099,0.211673,94485.0,94483.0,0.002]
[1735746764555,0.211673,94485.0,94478.0,0.10398632]
[1735746764762,0.211673,94485.0,94478.0,0.10698632]
[1735746765326,0.211673,94485.0,94483.0,0.007]
[1735746766807,0.09518883,94484.0,94478.0,0.10398632]
[1735746766882,0.09518883,94484.0,94478.0,0.11098632]
[1735746767121,0.09518883,94484.0,94483.0,0.003]
[1735746767419,0.09518883,94484.0,94483.0,0.01]
[1735746767628,0.211673,94485.0,94478.0,0.10398632]
[1735746768038,0.211673,94485.0,94478.0,0.11398632]
[1735746768274,0.30686183,94485.0,94478.0,0.10698632]
[1735746769724,0.30686183,94485.0,94483.0,0.004]
[1735746770243,0.30686183,94485.0,94478.0,0.10498632]
[1735746770451,0.30686183,94485.0,94478.0,0.11298632]
[1735746770645,0.30686183,94485.0,94478.0,0.10398632]
[1735746770844,0.30686183,94485.0,94483.0,0.003]
[1735746771075,0.30686183,94485.0,94483.0,0.011]
[1735746771204,0.30686183,94485.0,94483.0,0.003]
[1735746771408,0.30686183,94485.0,94478.0,0.10398632]
[1735746771786,0.30686183,94485.0,94478.0,0.11198632]
[1735746771957,0.30686183,94485.0,94478.0,0.11498632]
[1735746772572,0.211673,94485.0,94478.0,0.11498632]
[1735746772767,0.211673,94485.0,94478.0,0.10698632]
[1735746773180,0.211673,94485.0,94483.0,0.008]
[1735746773376,0.211673,94485.0,94478.0,0.10698632]
[1735746773754,0.211673,94485.0,94478.0,0.11498632]
[1735746773961,0.2117583,94485.0,94478.0,0.10398632]
[1735746774362,0.2117583,94485.0,94483.0,0.011]
[1735746774586,0.2117583,94485.0,94483.0,0.003]
[1735746774788,0.2117583,94485.0,94478.0,0.10398632]
[1735746774990,0.2117583,94485.0,94478.0,0.10698632]
[1735746775678,8.53e-05,94485.0,94478.0,0.10698632]
[1735746776001,8.53e-05,94485.0,94478.0,0.11498632]
[1735746776536,8.53e-05,94485.0,94478.0,0.11198632]
[1735746776749,8.53e-05,94485.0,94483.0,0.003]
[1735746777229,8.53e-05,94485.0,94478.0,0.11198632]
[1735746777621,8.53e-05,94485.0,94478.0,0.11498632]
[1735746777819,8.53e-05,94485.0,94479.0,0.0803]
[1735746778169,8.53e-05,94485.0,94480.0,0.10398632]
[1735746778323,8.53e-05,94485.0,94483.0,0.003]
[1735746778935,8.53e-05,94485.0,94483.0,0.10698632]
[1735746779174,8.53e-05,94485.0,94483.0,0.11498632]
[1735746779825,8.53e-05,94485.0,94483.0,0.11198632]
[1735746780862,8.53e-05,94485.0,94483.0,0.11498632]
[1735746783572,0.211676,94484.0,94483.0,0.11498632]
[1735746784490,0.211676,94484.0,94483.0,0.11198632]
[1735746785010,0.211676,94484.0,94483.0,0.11498632]
[1735746785996,0.211676,94484.0,94483.0,0.10698632]
[1735746786176,0.211676,94484.0,94483.0,0.11498632]
[1735746786372,8.53e-05,94485.0,94483.0,0.11498632]
[1735746786574,8.53e-05,94485.0,94484.0,0.10398632]
[1735746787606,8.53e-05,94485.0,94484.0,0.10698632]
[1735746789200,8.53e-05,94485.0,94484.0,0.11498632]
[1735746789735,0.09527413,94485.0,94484.0,0.11498632]
[1735746790606,0.09527413,94485.0,94484.0,0.12650201]
[1735746790732,8.53e-05,94485.0,94484.0,0.12650201]
[1735746791047,8.53e-05,94485.0,94484.0,0.20180201]
[1735746791459,8.53e-05,94485.0,94484.0,0.19028632]
[1735746791845,8.53e-05,94485.0,94484.0,0.23678632]
[1735746795488,0.09555282,94487.0,94484.0,0.23678632]
[1735746796288,8.54e-05,94498.0,94484.0,0.23378632]
[1735746796618,8.54e-05,94498.0,94484.0,0.22878632]
[1735746796764,8.54e-05,94498.0,94484.0,0.23578632]
[1735746796967,8.54e-05,94498.0,94485.0,0.02357863]
[1735746797171,8.54e-05,94498.0,94486.0,0.10398632]
[1735746797809,0.21165,94496.0,94486.0,0.10398632]
[1735746798471,0.211659,94492.0,94486.0,0.10398632]
[1735746799413,0.211659,94492.0,94486.0,0.10498632]
[1735746799819,0.211659,94492.0,94486.0,0.10798632]
[1735746800223,0.211659,94492.0,94486.0,0.10998632]
[1735746800421,8.54e-05,94498.0,94486.0,0.10998632]
[1735746800422,0.211668,94488.0,94486.0,0.10998632]
[1735746800818,0.211668,94488.0,94486.0,0.006]
[1735746801431,0.211668,94488.0,94486.0,0.004]
[1735746801969,0.211668,94488.0,94486.0,0.006]
[1735746802426,0.211668,94488.0,94486.0,0.004]
[1735746802552,0.0751,94494.0,94477.0,0.0001706]
[1735746802756,0.211665,94489.0,94487.0,0.10398632]
[1735746804341,0.211665,94489.0,94487.0,0.10898632]
[1735746805396,0.211665,94489.0,94487.0,0.11098632]
[1735746809697,0.14325114,94491.0,94487.0,0.11098632]
[1735746809698,0.14325114,94492.0,94488.0,0.23328632]
[1735746809814,0.14325114,94492.0,94491.0,0.10398632]
[1735746810216,0.14325114,94492.0,94491.0,0.18638632]
[1735746810647,8.53e-05,94493.0,94491.0,0.23109901]
[1735746810854,8.53e-05,94493.0,94492.0,0.10398632]
[1735746811422,8.53e-05,94493.0,94492.0,0.18638632]
[1735746811627,8.53e-05,94493.0,94492.0,0.23328632]
[1735746812459,8.53e-05,94493.0,94492.0,0.24228632]
[1735746812689,8.53e-05,94493.0,94492.0,0.24728632]
[1735746814496,8.53e-05,94493.0,94492.0,0.24228632]
[1735746815028,8.53e-05,94493.0,94492.0,0.24828632]
[1735746815179,8.53e-05,94493.0,94492.0,0.23928632]
[1735746815378,8.53e-05,94493.0,94492.0,0.23328632]
[1735746815585,8.53e-05,94493.0,94492.0,0.24228632]
[1735746815802,8.53e-05,94493.0,94492.0,0.28468195]
[1735746816145,8.53e-05,94493.0,94492.0,0.29368195]
[1735746817015,8.53e-05,94493.0,94492.0,0.24828632]
[1735746827966,8.53e-05,94493.0,94492.0,0.23328632]
[1735746828187,8.53e-05,94493.0,94492.0,0.24928632]
[1735746834083,8.53e-05,94493.0,94492.0,0.20238632]
[1735746834824,8.53e-05,94493.0,94492.0,0.11998632]
[1735746836007,8.53e-05,94493.0,94492.0,0.10415692]
[1735746836181,8.53e-05,94493.0,94492.0,0.10815692]
[1735746836362,8.53e-05,94493.0,94492.0,0.11615692]